Workbook

Sheet от 1 года до 3х лет
A1: Утверждаю | H1: Согласовано
A2: Директор ООО "АБК Пэймент" | H2: Руководитель дошкольной образовательной
A3: Рахматуллин Р.Р. | H3: организации
E5: Примерное 10-дневное меню
E6: для организации питания детей в дошкольных учреждениях
E7: с 8-10,5 - часовым пребыванием от 1 года до 3 лет
A8: День 1 - ый
A9: Наименование блюд и продуктов | B9: Ингридиенты | C9: Масса порции | D9: Кол - во (в г ) | E9: Кол - во (в г ) | F9: Пищевые вещества | I9: Энергетическая ценность | J9: Витамин | K9: Сборник рецептур
D10: брутто | E10: нетто | F10: белки | G10: жиры | H10: угл-ды | I10: Ккал | J10: С
B11: ЗАВТРАК
A12: Каша геркулесовая молочная с маслом сливочным | C12: 140/3 | F12: 5.79 | G12: 6.28 | H12: 26.29 | I12: 185.66 | J12: 0.67 | K12: ТТК №5Д
B13: крупа геркулесовая | D13: 18.00 | E13: 18.00
B14: молоко | D14: 123.00 | E14: 123.00
B15: сахар | D15: 2.00 | E15: 2.00
B16: соль йодированная | D16: 0.40 | E16: 0.40
B17: масло сливочное | D17: 3.00 | E17: 3.00
A18: Кофейный напиток с молоком | C18: 180/6 | F18: 2.85 | G18: 2.41 | H18: 10.35 | I18: 74.58 | J18: 1.17 | K18: №414 Дели 2016
B19: кофейный напиток | D19: 2.50 | E19: 2.50
B20: сахар | D20: 6.00 | E20: 6.00
B21: молоко | D21: 90.00 | E21: 90.00
B22: вода | D22: 108.00 | E22: 108.00
A23: Бутерброд с сыром, маслом сливочным | C23: 25/5/5 | F23: 2.53 | G23: 5.69 | H23: 12.92 | I23: 115.67 | J23: 0.07 | K23: №3 сб дошк 2016
B24: батон нарезной | D24: 25.00 | E24: 25.00
B25: сыр | D25: 5.10 | E25: 5.00
B26: масло сливочное | D26: 5.00 | E26: 5.00
A27: Итого: | C27: =143+186+35 -> 364 | F27: =SUM(F11:F26) -> 11.17 | G27: =SUM(G11:G26) -> 14.38 | H27: =SUM(H11:H26) -> 49.56 | I27: =SUM(I11:I26) -> 375.91 | J27: =SUM(J11:J26) -> 1.91
B28: 2 - ой ЗАВТРАК
A29: Кисломолочный напиток | C29: 150/2 | F29: 4.35 | G29: 3.75 | H29: 8.00 | I29: 83.00 | J29: 1.05 | K29: №420 Сб дошк 2016
A30: (катык, кефир, ряженка) | B30: кисломолочный напиток | D30: 155.00 | E30: 150.00
B31: сахар | D31: 2.00 | E31: 2.00
A32: Итого: | C32: 152 | F32: =SUM(F28:F30) -> 4.35 | G32: =SUM(G28:G30) -> 3.75 | H32: 8.00 | I32: 83.00 | J32: 1.05
B33: ОБЕД
A34: Салат из кукурузы к/с | C34: 30 | F34: 0.86 | G34: 1.85 | H34: 2.41 | I34: 29.79 | J34: 2.79 | K34: №10, сб дошк 2016
B35: кукуруза к/с | D35: 46.60 | E35: 27.90
B36: сахар | D36: 0.60 | E36: 0.60
B37: масло растительное | D37: 1.80 | E37: 1.80
A38: Суп картофельный с клецками на курином бульоне, с мясом птицы | C38: 150/10 | F38: 4.92 | G38: 4.72 | H38: 11.30 | I38: 115.56 | J38: 3.69 | K38: №91сб дошк 2016
B39: цыплята-бройлеры потр с/м | D39: 24.30 | E39: 23.00
B40: масса отварной мякоти птицы | E40: 10.00
B41: картофель | D41: 66.60 | E41: 50.00
B42: морковь | D42: 7.50 | E42: 6.00
B43: лук репчатый | D43: 7.20 | E43: 6.00
B44: масло растительное | D44: 1.50 | E44: 1.50
B45: соль иодированная | D45: 0.50 | E45: 0.50
B46: бульон | D46: 112.50 | E46: 112.50
B47: клецки: | E47: 15.00
B48: мука пшеничная | D48: 4.60 | E48: 4.60
B49: масло сливочное | D49: 0.50 | E49: 0.50
B50: яйцо | D50: 1.60 | E50: 1.32
B51: вода | D51: 7.30 | E51: 7.30
B52: соль йодированная | D52: 0.10 | E52: 0.10
B53: масса теста | E53: 13.50
B54: масса готовых клецек | E54: 15.00
A55: Пудинг рыбный | C55: 45/15 | F55: 8.98 | G55: 2.93 | H55: 4.40 | I55: 80.00 | J55: 0.32 | K55: №286 СБ дошк 2016
B56: рыба (минтай с/м БГ) | D56: 51.54 | E56: 37.90
B57: масса отварной рыбы | E57: 30.00
B58: хлеб пшеничный | D58: 6.20 | E58: 6.20
B59: яйцо | D59: 4.80 | E59: 4.00
B60: молоко | D60: 9.00 | E60: 9.00
B61: масло сливочное | D61: 1.70 | E61: 1.70
B62: соль иодированная | D62: 0.30 | E62: 0.30
B63: масло растительное | D63: 0.80 | E63: 0.80
B64: масса пудинга | E64: 45.00
B65: соус молочный
B66: молоко | D66: 7.50 | E66: 7.50
B67: масло сливочное | D67: 0.80 | E67: 0.80
B68: мука пшеничная | D68: 0.80 | E68: 0.80
B69: вода | D69: 7.50 | E69: 7.50
B70: сахар | D70: 0.15 | E70: 0.15
B71: соль иодированная | D71: 0.09 | E71: 0.09
B72: масса соуса | E72: 15.00
A73: Пюре картофельное | C73: 120 | F73: 2.45 | G73: 3.84 | H73: 16.35 | I73: 109.80 | J73: 14.53 | K73: №339 СБ дошк 2016
B74: картофель | D74: 136.80 | E74: 102.60
B75: молоко | D75: 18.96 | E75: 18.00
B76: масло сливочное | D76: 4.20 | E76: 4.20
B77: соль иодированная | D77: 0.45 | E77: 0.45
A78: Напиток из сухофруктов | C78: 150 | F78: 0.50 | G78: 0.07 | H78: 14.00 | I78: 60 | J78: 0.54 | K78: №394 Сб дошк 2016
B79: сухофрукты | D79: 12.75 | E79: 12.50
B80: сахар | D80: 5.00 | E80: 5.00
B81: вода | D81: 152.00 | E81: 152.00
A82: Хлеб пшеничный | C82: 20 | D82: 20.00 | E82: 20.00 | F82: 1.52 | G82: 0.16 | H82: 9.85 | I82: 47.05 | J82: 0.00 | K82: табл 6 стр 134, Дели +, 2012
A83: Хлеб ржаной | C83: 30 | D83: 30.00 | E83: 30.00 | F83: 1.98 | G83: 0.36 | H83: 11.87 | I83: 59.34 | J83: 0 | K83: табл 6 стр 144, Дели +, 2012
A84: Итого: | C84: =C34+160+60+C73+C78+C82+C83 -> 570 | F84: =SUM(F33:F83) -> 21.21 | G84: =SUM(G33:G83) -> 13.93 | H84: 70.18 | I84: 501.54 | J84: 21.87
B85: ПОЛДНИК
A86: Запеканка творожная с молоком сгущенным | C86: 110/20 | F86: 20.73 | G86: 16.98 | H86: 29.49 | I86: 353.40 | J86: 0.49 | K86: №251 сб дошк 2016
B87: творог | D87: 103.20 | E87: 101.20
B88: крупа манная | D88: 6.60 | E88: 6.60
B89: яйцо | D89: 5.28 | E89: 4.40
B90: сахар | D90: 8.80 | E90: 8.80
B91: сметана | D91: 4.40 | E91: 4.40
B92: масло сливочное | D92: 4.40 | E92: 4.40
B93: сухари панировочные | D93: 4.40 | E93: 4.40
B94: соль иодированная | D94: 0.55 | E94: 0.55
B95: молоко сгущенное | D95: 20.40 | E95: 20.00
A96: Чай с сахаром | C96: 150/5 | F96: 0.06 | G96: 0.02 | H96: 5.01 | I96: 19.95 | J96: 0.03 | K96: №410, 411 Дели 2016
B97: чай весовой | D97: 0.40 | E97: 0.40
B98: сахар | D98: 5.00 | E98: 5.00
B99: вода | D99: 150.00 | E99: 150.00
A100: Фрукты свежие | C100: 100 | D100: 100.00 | E100: 100.00 | F100: 0.40 | G100: 0.40 | H100: 9.80 | I100: 47.00 | J100: 10.00 | K100: №386 СБ
A101: (яблоки,или апельсин, или банан,или мандарин ) | K101: дошк. 2016
A102: Итого: | C102: =130+155+C100 -> 385 | F102: =SUM(F85:F101) -> 21.19 | G102: =SUM(G85:G101) -> 17.40 | H102: 44.30 | I102: 420.35 | J102: 10.52
A103: ВСЕГО: | C103: =C27+C32+C84+C102 -> 1471 | F103: =F27+F32+F84+F102 -> 57.92 | G103: =G27+G32+G84+G102 -> 49.46 | H103: =H27+H32+H84+H102 -> 172.03 | I103: =I27+I32+I84+I102 -> 1380.80 | J103: =J27+J32+J84+J102 -> 35.35
A105: День 2- ой
A106: Наименование блюд и продуктов | B106: Ингридиенты | C106: Масса порции | D106: Кол - во (в г ) | E106: Кол - во (в г ) | F106: Пищевые вещества | I106: Энергетическая ценность | J106: Витамин | K106: Сборник рецептур
D107: брутто | E107: нетто | F107: белки | G107: жиры | H107: угл-ды | I107: Ккал | J107: С
B108: ЗАВТРАК
A109: Каша полбяная молочная с маслом сливочным | C109: 140/3 | F109: 3.76 | G109: 6.13 | H109: 22.96 | I109: 162.00 | J109: 0.67 | K109: ТТК №1Д
B110: крупа полбяная | D110: 18.00 | E110: 18.00
B111: молоко | D111: 70.00 | E111: 70.00
B112: вода | D112: 53.00 | E112: 53.00
B113: сахар | D113: 2.00 | E113: 2.00
B114: соль иодированная | D114: 0.40 | E114: 0.40
B115: масло сливочное | D115: 3.00 | E115: 3.00
A116: Какао с молоком | C116: 180/6 | F116: 3.67 | G116: 3.19 | H116: 10.87 | I116: 90.78 | J116: 1.43 | K116: №416 Дели 2016
B117: какао-порошок | D117: 2.00 | E117: 2.00
B118: сахар | D118: 6.00 | E118: 6.00
B119: молоко | D119: 110.00 | E119: 110.00
B120: вода | D120: 80.00 | E120: 80.00
A121: Бутерброд с маслом сливочным | C121: 25/5 | F121: 1.92 | G121: 4.36 | H121: 12.92 | I121: 98.50 | K121: №1 Дели 2016
B122: батон нарезной | D122: 25.00 | E122: 25.00
B123: масло сливочное | D123: 5.00 | E123: 5.00
A124: Итого: | C124: 359 | F124: =SUM(F109:F123) -> 9.35 | G124: =SUM(G109:G123) -> 13.67 | H124: =SUM(H109:H123) -> 46.75 | I124: =SUM(I109:I123) -> 351.28 | J124: =SUM(J109:J123) -> 2.10
B125: 2 - ой ЗАВТРАК
A126: Сок в инд.упаковке | C126: 200 | D126: 200.00 | E126: 200.00 | F126: 1.00 | G126: 0.00 | H126: 20.20 | I126: 84.80 | J126: 4.00 | K126: №418 Дели 2016
A127: Итого: | C127: 200 | F127: =F126 -> 1.00 | G127: =G126 -> 0.00 | H127: =H126 -> 20.20 | I127: =I126 -> 84.80 | J127: =J126 -> 4.00
B128: ОБЕД
A129: Салат из моркови с сахаром | C129: 40 | F129: 0.50 | G129: 0.04 | H129: 4.65 | I129: 20.92 | J129: 1.92 | K129: №42, Сб дошк 2016
B130: морковь | D130: 48.00 | E130: 38.40
B131: сахар | D131: 2.00 | E131: 2.00
A132: Борщ со свежей капустой, с картофелем на мясном бульоне, со сметаной | C132: 150/5 | F132: 1.81 | G132: 3.70 | H132: 6.74 | I132: 70.31 | J132: 6.43 | K132: №63, сб дошк 2016
B133: капуста свежая | D133: 15.00 | E133: 12.00
B134: картофель | D134: 15.96 | E134: 12.00
B135: морковь | D135: 9.38 | E135: 7.50
B136: лук репчатый | D136: 7.14 | E136: 6.00
B137: свекла | D137: 30.72 | E137: 24.00
B138: сахар | D138: 3.00 | E138: 3.00
B139: томат-паста | D139: 0.15 | E139: 0.15
B140: масло растительное | D140: 1.50 | E140: 1.50
B141: соль иодированная | D141: 0.50 | E141: 0.50
B142: бульон | D142: 120.00 | E142: 120.00
B143: сметана | D143: 5.00 | E143: 5.00
A144: Гуляш из отварной говядины | C144: 30/30 | F144: 8.73 | G144: 10.07 | H144: 1.73 | I144: 132.60 | J144: 0.56 | K144: №293 сб рецептур 2017
B145: говядина лопатка б/к | D145: 48.00 | E145: 48.00
B146: соль йодированная | D146: 0.30 | E146: 0.30
B147: масса отварной говядины | E147: 30.00
B148: морковь | D148: 13.13 | E148: 10.50
B149: лук репчатый | D149: 6.36 | E149: 5.30
B150: вода питьевая | D150: 22.50 | E150: 22.50
B151: томатная паста | D151: 0.90 | E151: 0.90
B152: мука пшеничная в/с | D152: 1.50 | E152: 1.50
B153: масло растительное | D153: 2.00 | E153: 2.00
B154: соль йодированная | D154: 0.15 | E154: 0.15
A155: Каша гречневая рассыпчатая с маслом сливочным | C155: 110/2 | F155: 6.45 | G155: 3.13 | H155: 29.16 | I155: 170.14 | J155: 0.00 | K155: №179 сб дошк 2016
B156: гречневая крупа | D156: 52.40 | E156: 52.40
B157: вода питьевая | D157: 78.10 | E157: 78.10
B158: соль йодированная | D158: 0.30 | E158: 0.30
B159: масло сливочное | D159: 2.00 | E159: 2.00
A160: Компот из свежих яблок | C160: 150 | F160: 0.12 | G160: 0.12 | H160: 20.91 | I160: 85.95 | J160: 2.85 | K160: №342 сб шк 2017
B161: яблоки свежие | D161: 28.50 | E161: 25.00
B162: сахар | D162: 5.00 | E162: 5.00
B163: вода | D163: 152.00 | E163: 152.00
A165: Хлеб пшеничный | C165: 20 | D165: 20.00 | E165: 20.00 | F165: 1.52 | G165: 0.16 | H165: 9.85 | I165: 47.05 | J165: 0.00 | K165: табл 6 стр 134, Дели +, 2012
A166: Хлеб ржаной | C166: 30 | D166: 30.00 | E166: 30.00 | F166: 1.98 | G166: 0.36 | H166: 11.87 | I166: 59.34 | J166: 0 | K166: табл 6 стр 144, Дели +, 2012
A167: Итого: | C167: =C129+155+60+112+C160+C165+C166 -> 567 | F167: =SUM(F129:F166) -> 21.11 | G167: =SUM(G129:G166) -> 17.58 | H167: =SUM(H129:H166) -> 84.90 | I167: =SUM(I129:I166) -> 586.31 | J167: =SUM(J129:J166) -> 11.76
B168: ПОЛДНИК
A169: Элеш с птицей | C169: 100 | F169: 10.90 | G169: 14.00 | H169: 22.30 | I169: 245.00 | K169: Согласно сборника рецептур блюд и кулинарных изделий татарской кухни
B170: мука пшеничная | D170: 30.80 | E170: 30.80
B171: в том числе на подпыл | D171: 1.20 | E171: 1.20
B172: сахарный песок | D172: 0.80 | E172: 0.80
B173: масло сливочное | D173: 5.00 | E173: 5.00
B174: яйцо куриное | D174: 6.00 | E174: 5.00
B175: сметана | D175: 12.50 | E175: 12.50
B176: соль йодированная | D176: 0.40 | E176: 0.40
B177: масса теста | E177: 52.00
B178: цыплята - бройлеры с/м | D178: 51.60 | E178: 36.00
B179: картофель | D179: 34.58 | E179: 26.00
B180: лук репчатый | D180: 7.20 | E180: 6.00
B181: масло сливочное | D181: 5.00 | E181: 5.00
B182: соль | D182: 0.80 | E182: 0.80
B183: масса фарша | E183: 72.00
B184: яйцо куриное для смазки изделия | D184: 1.20 | E184: 1.00
B185: масло растительное | D185: 0.20 | E185: 0.20
A186: Чай с сахаром и лимоном | C186: 150/5/5 | F186: 0.10 | G186: 0.02 | H186: 5.18 | I186: 21.78 | J186: 2.24 | K186: №412 Дели 2016
B187: чай весовой | D187: 0.40 | E187: 0.40
B188: сахар | D188: 5.00 | E188: 5.00
B189: лимон | D189: 5.55 | E189: 5.00
B190: вода | D190: 150.00 | E190: 150.00
A191: Фрукты свежие | C191: 100 | D191: 100.00 | E191: 100.00 | F191: 1.50 | G191: 0.50 | H191: 21.00 | I191: 96.00 | J191: 10.00 | K191: табл 9 стр 186, Дели +, 2012
A192: (яблоки,или апельсин, или банан,или мандарин)
A193: Итого: | C193: =C169+160+C191 -> 360 | F193: =SUM(F168:F192) -> 12.50 | G193: =SUM(G168:G192) -> 14.52 | H193: 48.48 | I193: 362.78 | J193: 12.24
A194: ВСЕГО: | C194: =C124+C127+C167+C193 -> 1486 | F194: =F124+F127+F167+F193 -> 43.96 | G194: =G124+G127+G167+G193 -> 45.77 | H194: =H124+H127+H167+H193 -> 200.33 | I194: =I124+I127+I167+I193 -> 1385.17 | J194: =J124+J127+J167+J193 -> 30.10
A196: День 3 - ий
A197: Наименование блюд и продуктов | B197: Ингридиенты | C197: Масса порции | D197: Кол - во (в г ) | E197: Кол - во (в г ) | F197: Пищевые вещества | I197: Энергетическая ценность | J197: Витамин | K197: Сборник рецептур
D198: брутто | E198: нетто | F198: белки | G198: жиры | H198: угл-ды | I198: Ккал | J198: С
B199: ЗАВТРАК
A200: Каша "Дружба" молочная с маслом сливочным | C200: 140/3 | F200: 4.22 | G200: 4.92 | H200: 23.38 | I200: 155.56 | J200: 0.60 | K200: ТТК №7Д
B201: крупа рисовая | D201: 10.00 | E201: 10.00
B202: крупа пшенная | D202: 7.50 | E202: 7.50
B203: молоко | D203: 75.00 | E203: 75.00
B204: вода | D204: 48.00 | E204: 48.00
... 741 more rows

Sheet от 3х до 7 лет
A1: Утверждаю | H1: Согласовано
A2: Директор ООО "АБК Пэймент" | H2: Руководитель дошкольной образовательной
A3: Рахматуллин Р.Р. | H3: организации
C5: Примерное 10-дневное меню
C6: для организации питания детей в дошкольных учреждениях
C7: с 8-10,5 - часовым пребыванием от 3 до 7 лет
A8: День 1 - ый
A9: Наименование блюд и продуктов | B9: Ингридиенты | C9: Масса порции | D9: Кол - во (в г ) | E9: Кол - во (в г ) | F9: Пищевые вещества | I9: Энергетическая ценность | J9: Витамин | K9: Сборник рецептур
D10: брутто | E10: нетто | F10: белки | G10: жиры | H10: угл-ды | I10: Ккал | J10: С
B11: ЗАВТРАК
A12: Каша геркулесовая молочная с маслом сливочным | C12: 180/3 | F12: 7.44 | G12: 8.07 | H12: 33.80 | I12: 238.71 | J12: 0.86 | K12: ТТК №5Д
B13: крупа геркулесовая | D13: 22.50 | E13: 22.50
B14: молоко | D14: 158.00 | E14: 158.00
B15: сахар | D15: 2.50 | E15: 2.50
B16: соль йодированная | D16: 0.50 | E16: 0.50
B17: масло сливочное | D17: 3.00 | E17: 3.00
A18: Кофейный напиток с молоком | C18: 180/6 | F18: 2.85 | G18: 2.41 | H18: 10.35 | I18: 74.58 | J18: 1.17 | K18: №414 Дели 2016
B19: кофейный напиток | D19: 2.50 | E19: 2.50
B20: сахар | D20: 6.00 | E20: 6.00
B21: молоко | D21: 90.00 | E21: 90.00
B22: вода | D22: 108.00 | E22: 108.00
A23: Бутерброд с сыром, маслом сливочным | C23: 30/5/5 | F23: 3.61 | G23: 5.83 | H23: 15.49 | I23: 128.77 | J23: 0.07 | K23: №3 сб дошк 2016
B24: батон нарезной | D24: 30.00 | E24: 30.00
B25: сыр | D25: 5.10 | E25: 5.00
B26: масло сливочное | D26: 5.00 | E26: 5.00
A27: Итого: | C27: =183+186+40 -> 409 | F27: =F12+F18+F23 -> 13.90 | G27: =G12+G18+G23 -> 16.31 | H27: =H12+H18+H23 -> 59.64 | I27: =I12+I18+I23 -> 442.06 | J27: =J12+J18+J23 -> 2.10
B28: 2 - ой ЗАВТРАК
A29: Кисломолочный напиток | C29: 180/3 | F29: 5.22 | G29: 4.50 | H29: 10.19 | I29: 102.00 | J29: 1.26 | K29: №420 СБ дошк 2016
A30: (катык, кефир, ряженка) | B30: кисломолочный напиток | D30: 185.00 | E30: 180.00
B31: сахар | D31: 3.00 | E31: 3.00
A32: Итого: | C32: 183 | F32: =SUM(F29:F30) -> 5.22 | G32: =SUM(G29:G30) -> 4.50 | H32: 10.19 | I32: 102.00 | J32: 1.26
B33: ОБЕД
A34: Икра кабачковая | C34: 50 | F34: 0.45 | G34: 2.35 | H34: 2.97 | I34: 34.80 | K34: №54 дошк. Сб 2016
B35: икра кабачковая | D35: 51.00 | E35: 50.00
A36: Суп картофельный с клецками на курином бульоне, с мясом птицы | C36: 180/10 | F36: 5.44 | G36: 5.30 | H36: 13.53 | I36: 133.43 | J36: 4.38 | K36: №91сб дошк 2016
B37: цыплята-бройлеры потр с/м | D37: 24.30 | E37: 23.00
B38: масса отварной мякоти птицы | E38: 10.00
B39: картофель | D39: 79.80 | E39: 60.00
B40: морковь | D40: 9.00 | E40: 7.20
B41: лук репчатый | D41: 8.60 | E41: 7.20
B42: масло растительное | D42: 1.80 | E42: 1.80
B43: соль иодированная | D43: 0.60 | E43: 0.60
B44: бульон | D44: 135.00 | E44: 135.00
B45: клецки: | E45: 18.00
B46: мука пшеничная | D46: 5.50 | E46: 5.50
B47: масло сливочное | D47: 0.60 | E47: 0.60
B48: яйцо | D48: 1.92 | E48: 1.60
B49: вода | D49: 8.80 | E49: 8.80
B50: соль йодированная | D50: 0.16 | E50: 0.16
B51: масса теста | E51: 16.20
B52: масса готовых клецек | E52: 18.00
A53: Пудинг рыбный | C53: 60/20 | F53: 11.97 | G53: 3.91 | H53: 5.87 | I53: 106.67 | J53: 0.46 | K53: №286 СБ дошк 2016
B54: рыба (минтай с/м БГ) | D54: 68.34 | E54: 50.25
B55: масса отварной рыбы | E55: 39.75
B56: хлеб пшеничный | D56: 8.25 | E56: 8.25
B57: яйцо | D57: 6.30 | E57: 5.25
B58: молоко | D58: 12.00 | E58: 12.00
B59: масло сливочное | D59: 2.25 | E59: 2.25
B60: соль иодированная | D60: 0.40 | E60: 0.40
B61: масло растительное | D61: 1.00 | E61: 1.00
B62: масса пудинга | E62: 60.00
B63: соус молочный
B64: молоко | D64: 10.00 | E64: 10.00
B65: масло сливочное | D65: 1.10 | E65: 1.10
B66: мука пшеничная | D66: 1.10 | E66: 1.10
B67: вода | D67: 10.00 | E67: 10.00
B68: сахар | D68: 0.20 | E68: 0.20
B69: соль иодированная | D69: 0.13 | E69: 0.13
B70: масса соуса | E70: 20.00
A71: Пюре картофельное | C71: 140 | F71: 2.86 | G71: 4.48 | H71: 19.08 | I71: 128.10 | J71: 16.96 | K71: №339 СБ дошк 2016
B72: картофель | D72: 159.60 | E72: 119.70
B73: молоко | D73: 22.12 | E73: 21.00
B74: масло сливочное | D74: 5.00 | E74: 5.00
B75: соль иодированная | D75: 0.52 | E75: 0.52
A76: Напиток из сухофруктов | C76: 180 | F76: 0.60 | G76: 0.08 | H76: 16.81 | I76: 72 | J76: 0.65 | K76: №394 Сб дошк 2016
B77: сухофрукты | D77: 15.30 | E77: 15.00
B78: сахар | D78: 6.00 | E78: 6.00
B79: вода | D79: 183.00 | E79: 183.00
A80: Хлеб пшеничный | C80: 30 | D80: 30.00 | E80: 30.00 | F80: 2.28 | G80: 0.24 | H80: 14.76 | I80: 70.50 | J80: 0.00 | K80: табл 6 стр 134, Дели +, 2012
A81: Хлеб ржаной | C81: 35 | D81: 35.00 | E81: 35.00 | F81: 2.31 | G81: 0.42 | H81: 13.87 | I81: 69.37 | J81: 0.00 | K81: табл 6 стр 144, Дели +, 2012
A82: Итого: | C82: =C34+190+80+C71+C76+C80+C81 -> 705 | F82: =SUM(F33:F81) -> 25.91 | G82: =SUM(G33:G81) -> 16.78 | H82: =SUM(H33:H81) -> 86.89 | I82: =SUM(I33:I81) -> 614.39 | J82: =SUM(J33:J81) -> 22.45
B83: ПОЛДНИК
A84: Запеканка творожная с молоком сгущенным | C84: 130/20 | F84: 24.20 | G84: 20.06 | H84: 32.78 | I84: 408.20 | J84: 0.54 | K84: №251, сб дошк 2016
B85: творог | D85: 121.55 | E85: 119.20
B86: крупа манная | D86: 7.80 | E86: 7.80
B87: яйцо | D87: 6.50 | E87: 5.42
B88: сахар | D88: 10.40 | E88: 10.40
B89: сметана | D89: 5.20 | E89: 5.20
B90: масло сливочное | D90: 5.20 | E90: 5.20
B91: сухари панировочные | D91: 5.20 | E91: 5.20
B92: соль иодированная | D92: 0.65 | E92: 0.65
B93: молоко сгущенное | D93: 20.40 | E93: 20.00
A94: Чай с сахаром | C94: 180/6 | F94: 0.06 | G94: 0.02 | H94: 6.01 | I94: 23.94 | J94: 0.03 | K94: №410, 411 Дели 2016
B95: чай весовой | D95: 0.45 | E95: 0.45
B96: сахар | D96: 6.00 | E96: 6.00
B97: вода | D97: 180.00 | E97: 180.00
A98: Фрукты свежие | C98: 100 | D98: 100.00 | E98: 100.00 | F98: 0.40 | G98: 0.40 | H98: 9.80 | I98: 47.00 | J98: 10.00 | K98: №386 СБ
A99: (яблоки,или апельсин, или банан,или мандарин ) | K99: дошк. 2016
A100: Итого: | C100: =150+186+C98 -> 436 | F100: =SUM(F83:F99) -> 24.66 | G100: =SUM(G83:G99) -> 20.48 | H100: 48.60 | I100: 479.14 | J100: 10.57
A101: ВСЕГО: | C101: =C27+C32+C82+C100 -> 1733 | F101: =F27+F32+F82+F100 -> 69.69 | G101: =G27+G32+G82+G100 -> 58.08 | H101: =H27+H32+H82+H100 -> 205.33 | I101: =I27+I32+I82+I100 -> 1637.58 | J101: =J27+J32+J82+J100 -> 36.38
A103: День 2- ой
A104: Наименование блюд и продуктов | B104: Ингридиенты | C104: Масса порции | D104: Кол - во (в г ) | E104: Кол - во (в г ) | F104: Пищевые вещества | I104: Энергетическая ценность | J104: Витамин | K104: Сборник рецептур
D105: брутто | E105: нетто | F105: белки | G105: жиры | H105: угл-ды | I105: Ккал | J105: С
B106: ЗАВТРАК
A107: Каша полбяная молочная с маслом сливочным | C107: 180/3 | F107: 4.81 | G107: 7.85 | H107: 29.38 | I107: 207.32 | J107: 0.86 | K107: ТТК №1Д
B108: крупа полбяная | D108: 22.50 | E108: 22.50
B109: молоко | D109: 90.00 | E109: 90.00
B110: вода | D110: 68.00 | E110: 68.00
B111: сахар | D111: 2.50 | E111: 2.50
B112: соль иодированная | D112: 0.50 | E112: 0.50
B113: масло сливочное | D113: 3.00 | E113: 3.00
A114: Какао с молоком | C114: 180/6 | F114: 3.67 | G114: 3.19 | H114: 10.87 | I114: 90.78 | J114: 1.43 | K114: №416 Дели 2016
B115: какао-порошок | D115: 2.00 | E115: 2.00
B116: сахар | D116: 6.00 | E116: 6.00
B117: молоко | D117: 110.00 | E117: 110.00
B118: вода | D118: 80.00 | E118: 80.00
A119: Бутерброд с маслом сливочным | C119: 30/5 | F119: 2.29 | G119: 4.50 | H119: 15.49 | I119: 111.68 | K119: №1 Дели 2010
B120: батон нарезной | D120: 30.00 | E120: 30.00
B121: масло сливочное | D121: 5.00 | E121: 5.00
A122: Итого: | C122: =183+186+35 -> 404 | F122: =SUM(F107:F121) -> 10.77 | G122: =SUM(G107:G121) -> 15.54 | H122: =SUM(H107:H121) -> 55.74 | I122: =SUM(I107:I121) -> 409.78 | J122: =SUM(J107:J121) -> 2.29
B123: 2 - ой ЗАВТРАК
A124: Сок разливной | C124: 200 | D124: 200.00 | E124: 200.00 | F124: 1.00 | G124: 0.00 | H124: 20.20 | I124: 84.80 | J124: 4.00 | K124: №418 Дели 2016
A125: Итого: | C125: 200 | F125: =SUM(F124) -> 1.00 | G125: =SUM(G124) -> 0.00 | H125: =SUM(H124) -> 20.20 | I125: =SUM(I124) -> 84.80 | J125: =SUM(J124) -> 4.00
B126: ОБЕД
A127: Салат из моркови с сахаром | C127: 60 | F127: 0.75 | G127: 0.06 | H127: 6.97 | I127: 31.38 | J127: 2.88 | K127: №42, сб шк 2017
B128: морковь | D128: 72.00 | E128: 57.60
B129: сахар | D129: 3.00 | E129: 3.00
A130: Борщ со свежей капустой, с картофелем на мясном бульоне, со сметаной | C130: 180/7 | F130: 1.48 | G130: 4.59 | H130: 8.12 | I130: 85.97 | J130: 7.71 | K130: №63 сб дошк 2016
B131: капуста свежая | D131: 20.00 | E131: 16.00
B132: картофель | D132: 21.28 | E132: 16.00
B133: морковь | D133: 12.50 | E133: 10.00
B134: лук репчатый | D134: 9.52 | E134: 8.00
B135: свекла | D135: 41.00 | E135: 32.00
B136: сахар | D136: 0.20 | E136: 0.20
B137: томат-паста | D137: 2.00 | E137: 2.00
B138: масло растительное | D138: 4.00 | E138: 4.00
B139: соль иодированная | D139: 0.70 | E139: 0.70
B140: бульон | D140: 140.00 | E140: 140.00
B141: сметана | D141: 7.00 | E141: 7.00
A142: Гуляш из отварной говядины | C142: 40/40 | F142: 11.64 | G142: 13.43 | H142: 2.31 | I142: 176.80 | J142: 0.74 | K142: №260 сб рецептур 2017
B143: говядина лопатка б/к | D143: 64.00 | E143: 64.00
B144: соль йодированная | D144: 0.40 | E144: 0.40
B145: масса отварной говядины | E145: 40.00
B146: морковь | D146: 17.50 | E146: 14.00
B147: лук репчатый | D147: 8.50 | E147: 7.10
B148: вода питьевая | D148: 30.00 | E148: 30.00
B149: томатная паста | D149: 1.20 | E149: 1.20
B150: мука пшеничная в/с | D150: 2.00 | E150: 2.00
B151: масло растительное | D151: 2.70 | E151: 2.70
B152: соль йодированная | D152: 0.20 | E152: 0.20
A153: Каша гречневая рассыпчатая с маслом сливочным | C153: 130/3 | F153: 7.62 | G153: 4.16 | H153: 34.47 | I153: 205.27 | J153: 0.00 | K153: №179 сб дошк 2016
B154: гречневая крупа | D154: 61.90 | E154: 61.90
B155: вода питьевая | D155: 92.30 | E155: 92.30
B156: соль йодированная | D156: 0.40 | E156: 0.40
B157: масло сливочное | D157: 3.00 | E157: 3.00
A158: Компот из свежих яблок | C158: 180 | F158: 0.14 | G158: 0.14 | H158: 25.09 | I158: 103.14 | J158: 0.81 | K158: №342 сб шк 2017
B159: яблоки свежие | D159: 34.00 | E159: 30.00
B160: сахар | D160: 6.00 | E160: 6.00
B161: вода | D161: 183.00 | E161: 183.00
A162: Хлеб пшеничный | C162: 30 | D162: 30.00 | E162: 30.00 | F162: 2.28 | G162: 0.24 | H162: 14.76 | I162: 70.50 | J162: 0.00 | K162: табл 6 стр 134, Дели +, 2012
A163: Хлеб ржаной | C163: 40 | D163: 40.00 | E163: 40.00 | F163: 2.64 | G163: 0.48 | H163: 15.86 | I163: 79.28 | J163: 0.00 | K163: табл 6 стр 144, Дели +, 2012
A164: Итого: | C164: =C127+187+80+133+C158+C162+C163 -> 710 | F164: =SUM(F127:F163) -> 26.56 | G164: =SUM(G127:G163) -> 23.10 | H164: =SUM(H127:H163) -> 107.57 | I164: =SUM(I127:I163) -> 752.33 | J164: =SUM(J127:J163) -> 12.14
B165: ПОЛДНИК
A166: Элеш с птицей | C166: 100 | F166: 10.90 | G166: 14.00 | H166: 22.30 | I166: 245.00 | K166: Согласно сборника рецептур блюд и кулинарных изделий татарской кухни
B167: мука пшеничная | D167: 30.80 | E167: 30.80
B168: в том числе на подпыл | D168: 1.20 | E168: 1.20
B169: сахарный песок | D169: 0.80 | E169: 0.80
B170: масло сливочное | D170: 5.00 | E170: 5.00
B171: яйцо куриное | D171: 6.00 | E171: 5.00
B172: сметана | D172: 12.50 | E172: 12.50
B173: соль йодированная | D173: 0.40 | E173: 0.40
B174: масса теста | E174: 52.00
B175: цыплята - бройлеры с/м | D175: 51.60 | E175: 36.00
B176: картофель | D176: 34.58 | E176: 26.00
B177: лук репчатый | D177: 7.20 | E177: 6.00
B178: масло сливочное | D178: 5.00 | E178: 5.00
B179: соль | D179: 0.80 | E179: 0.80
B180: масса фарша | E180: 72.00
B181: яйцо куриное для смазки изделия | D181: 1.20 | E181: 1.00
B182: масло растительное | D182: 0.20 | E182: 0.20
A183: Чай с сахаром и лимоном | C183: 180/6/7 | F183: 0.13 | G183: 0.03 | H183: 6.23 | I183: 26.48 | J183: 2.83 | K183: №412 Дели 2016
B184: чай весовой | D184: 0.45 | E184: 0.45
B185: сахар | D185: 6.00 | E185: 6.00
B186: лимон | D186: 8.00 | E186: 7.00
B187: вода | D187: 180.00 | E187: 180.00
A188: Фрукты свежие | C188: 100 | D188: 100.00 | E188: 100.00 | F188: 1.50 | G188: 0.50 | H188: 21.00 | I188: 96.00 | J188: 10.00 | K188: табл 9 стр 186, Дели +, 2012
A189: (яблоки,или апельсин, или банан,или мандарин)
A190: Итого: | C190: =C166+193+C188 -> 393 | F190: =SUM(F165:F189) -> 12.53 | G190: =SUM(G165:G189) -> 14.53 | H190: 49.53 | I190: 367.48 | J190: 12.83
A191: ВСЕГО: | C191: =C122+C125+C164+C190 -> 1707 | F191: =F122+F125+F164+F190 -> 50.86 | G191: =G122+G125+G164+G190 -> 53.17 | H191: =H122+H125+H164+H190 -> 233.04 | I191: =I122+I125+I164+I190 -> 1614.39 | J191: =J122+J125+J164+J190 -> 31.26
A193: День 3 - ий
A194: Наименование блюд и продуктов | B194: Ингридиенты | C194: Масса порции | D194: Кол - во (в г ) | E194: Кол - во (в г ) | F194: Пищевые вещества | I194: Энергетическая ценность | J194: Витамин | K194: Сборник рецептур
D195: брутто | E195: нетто | F195: белки | G195: жиры | H195: угл-ды | I195: Ккал | J195: С
B196: ЗАВТРАК
A197: Каша "Дружба" молочная с маслом сливочным | C197: 180/3 | F197: 5.34 | G197: 8.40 | H197: 29.46 | I197: 215.85 | J197: 0.86 | K197: ТТК №7Д
B198: крупа рисовая | D198: 13.50 | E198: 13.50
B199: крупа пшенная | D199: 10.00 | E199: 10.00
B200: молоко | D200: 90.00 | E200: 90.00
B201: вода | D201: 68.00 | E201: 68.00
B202: сахар | D202: 2.50 | E202: 2.50
B203: соль иодированная | D203: 0.50 | E203: 0.50
... 739 more rows
